bitfinex/quotes_ETHUSD_20230903
["timestamp","ask_amount","ask_price","bid_price","bid_amount"]
[1693771331625,4.8064,1640.5,1640.2,1.05957779]
[1693771331818,4.8064,1640.5,1640.2,1.55288826]
[1693771332158,4.8064,1640.5,1640.2,0.49331047]
[1693771332855,4.8064,1640.5,1640.2,3.57516451]
[1693771338268,30.41,1640.8,1640.3,4.14123944]
[1693771338441,4.303,1640.9,1640.4,7.47350934]
[1693771338645,4.303,1640.9,1640.5,4.14123944]
[1693771338646,2.75,1640.9,1640.5,4.14123944]
[1693771338874,0.101,1641.4,1640.8,3.08185404]
[1693771339033,0.101,1641.4,1640.8,6.08185404]
[1693771339230,1.553,1641.3,1640.9,0.6081854]
[1693771339435,1.553,1641.3,1640.9,3.84129107]
[1693771340148,1.553,1641.3,1640.9,3.69003944]
[1693771340766,1.553,1641.3,1641.0,0.14967315]
[1693771341144,0.101,1641.4,1641.0,3.23152719]
[1693771341349,0.101,1641.4,1641.1,0.32315272]
[1693771341939,0.101,1641.4,1641.1,3.40500676]
[1693771344472,0.06866251,1641.4,1641.1,3.40500676]
[1693771344851,0.06866251,1641.4,1641.2,1.05888018]
[1693771345862,1.55300001,1641.4,1641.2,1.56917494]
[1693771346032,1.553,1641.3,1641.1,0.63906069]
[1693771346237,0.4234843,1641.3,1641.0,1.59765173]
[1693771346439,0.4234843,1641.3,1641.1,1.05893123]
[1693771347185,0.4234843,1641.3,1641.1,1.69799192]
[1693771347398,0.4234843,1641.3,1641.2,1.05894669]
[1693771350938,0.4234843,1641.3,1641.1,2.27185108]
[1693771351171,0.4234843,1641.3,1641.2,1.05894669]
[1693771351545,0.41545005,1641.3,1641.2,1.05894669]
[1693771353570,0.41545005,1641.3,1641.2,1.69800738]
[1693771354389,0.41545005,1641.3,1641.2,1.05894669]
[1693771355397,6.98818005,1641.3,1640.9,0.63906069]
[1693771355571,1.17881801,1641.2,1640.9,0.63906069]
[1693771355753,3.93551801,1641.2,1640.9,1.69817348]
[1693771355953,1.553,1641.0,1640.9,1.69817348]
[1693771356159,3.93551801,1641.2,1641.0,0.1415828]
[1693771356370,1.553,1641.1,1641.0,0.1415828]
[1693771356660,1.553,1641.1,1641.0,1.2007005]
[1693771357973,2.1018518,1641.1,1641.0,1.2007005]
[1693771360693,8.66370584,1641.1,1641.0,0.1415828]
[1693771360870,27.37690156,1641.1,1641.0,0.1415828]
[1693771362494,1.553,1641.0,1640.7,0.63906069]
[1693771362701,1.553,1640.8,1640.7,1.6983431]
[1693771363260,2.594561,1640.8,1640.7,1.8555961]
[1693771366205,1.46462897,1640.8,1640.7,1.8555961]
[1693771367977,0.42306797,1640.8,1640.7,1.8555961]
[1693771368604,0.42306797,1640.8,1640.7,1.75490473]
[1693771368805,2.7684,1640.9,1640.7,2.39396543]
[1693771368806,4.3214,1640.9,1640.7,2.39396543]
[1693771369010,4.3214,1640.9,1640.8,2.64511349]
[1693771369211,4.3214,1640.9,1640.8,2.64509924]
[1693771369910,4.3214,1640.9,1640.8,2.01078106]
[1693771370108,4.3214,1640.9,1640.8,1.58593522]
[1693771370483,4.3214,1640.9,1640.8,2.64521763]
[1693771370910,4.3214,1640.9,1640.8,1.69371898]
[1693771377003,4.3214,1640.9,1640.8,0.63443657]
[1693771377513,4.3214,1640.9,1640.8,1.73788787]
[1693771377718,4.3214,1640.9,1640.8,2.16273371]
[1693771380921,4.3214,1640.9,1640.8,2.79845965]
[1693771381229,4.3214,1640.9,1640.8,2.16273371]
[1693771382491,4.3214,1640.9,1640.8,1.73930698]
[1693771382691,4.3214,1640.9,1640.8,1.1034513]
[1693771382892,4.3214,1640.9,1640.8,2.16273371]
[1693771384807,4.3214,1640.9,1640.8,1.7395891]
[1693771385007,4.3214,1640.9,1640.8,2.79887151]
[1693771385432,4.3214,1640.9,1640.8,1.84737286]
[1693771385911,3.68588784,1640.9,1640.8,1.84737286]
[1693771386828,3.68588784,1640.9,1640.8,1.21123506]
[1693771387704,3.68588784,1640.9,1640.8,0.15195265]
[1693771388031,3.68588784,1640.9,1640.8,1.21120875]
[1693771388222,3.68588784,1640.9,1640.8,1.0592561]
[1693771388420,3.68588784,1640.9,1640.6,1.58763645]
[1693771388834,3.68588784,1640.9,1640.7,1.05925887]
[1693771389138,3.68588784,1640.9,1640.6,0.6361378]
[1693771389856,3.68588784,1640.9,1640.6,1.69539295]
[1693771390011,3.68588784,1640.9,1640.7,1.05925515]
[1693771390210,3.68588784,1640.9,1640.6,0.6361378]
[1693771391346,3.68588784,1640.9,1640.7,0.15174324]
[1693771391723,3.68588784,1640.9,1640.6,0.6361378]
[1693771393123,1.553,1640.8,1640.6,0.6361378]
[1693771393324,1.503,1640.8,1640.6,0.6361378]
[1693771393831,1.503,1640.8,1640.5,1.58763645]
[1693771394038,1.503,1640.8,1640.6,1.69539519]
[1693771394228,1.503,1640.8,1640.7,1.05925739]
[1693771394428,1.503,1640.8,1640.6,0.6361378]
[1693771394935,1.503,1640.8,1640.7,1.05925739]
[1693771395527,1.503,1640.8,1640.5,1.58763645]
[1693771395751,1.503,1640.8,1640.5,3.09814058]
[1693771395938,1.503,1640.8,1640.6,1.05925835]
[1693771396939,1.503,1640.8,1640.5,2.03888223]
[1693771397140,1.503,1640.8,1640.6,1.05925779]
[1693771398828,1.503,1640.8,1640.7,1.0592374]
[1693771399033,1.503,1640.8,1640.6,1.6953752]
[1693771399239,1.503,1640.8,1640.7,1.0592374]
[1693771399454,1.503,1640.8,1640.6,1.6953752]
[1693771400664,2.13288784,1640.9,1640.6,0.94594976]
[1693771400665,1.553,1640.9,1640.6,0.94594976]
[1693771400966,1.553,1641.0,1640.7,0.6361378]
[1693771401330,1.553,1641.0,1640.7,1.6953752]
[1693771403258,1.553,1641.0,1640.8,1.0592374]
[1693771403465,1.553,1641.0,1640.7,0.6361378]
[1693771403846,1.553,1641.0,1640.7,1.6952866]
[1693771404466,5.9466,1641.2,1640.7,1.6952866]
[1693771404777,3.9698,1641.2,1640.8,0.6361378]
[1693771404965,3.9698,1641.2,1640.8,1.6952866]
[1693771405980,1.553,1641.2,1640.8,4.77714064]
[1693771406180,1.553,1641.2,1640.9,1.53686286]
[1693771406379,1.553,1641.2,1640.9,0.62922813]
[1693771415385,1.553,1641.0,1640.9,0.15151407]
[1693771415869,1.553,1641.0,1640.7,1.6364]
[1693771416188,1.553,1641.0,1640.7,3.08185404]
[1693771416555,1.553,1640.9,1640.5,2.75348358]
[1693771416801,1.553,1640.9,1640.5,3.53309982]
[1693771416965,1.553,1640.8,1640.6,0.35330998]
[1693771418287,1.553,1640.8,1640.7,0.1463121]
[1693771418678,1.553,1640.8,1640.6,0.35330998]
[1693771421414,1.553,1640.8,1640.7,0.14619172]
[1693771421769,1.553,1640.8,1640.6,0.35330998]
[1693771425483,1.553,1640.8,1640.5,3.53309982]
[1693771430340,2.542,1640.9,1640.5,3.53309982]
[1693771430519,2.542,1640.9,1640.6,1.05913457]
[1693771431218,3.5503,1641.0,1640.6,1.05913457]
[1693771436153,3.5503,1641.0,1640.7,0.14644577]
[1693771436363,3.42814796,1641.0,1640.7,0.14644577]
[1693771436563,3.42814796,1641.0,1640.5,5.67783762]
[1693771436856,3.42814796,1641.0,1640.6,1.62691473]
[1693771437058,3.42814796,1641.0,1640.6,0.56778376]
[1693771441474,1.553,1640.9,1640.5,4.16923762]
[1693771441633,1.553,1640.8,1640.6,1.05917186]
[1693771441830,1.553,1640.8,1640.4,0.6361378]
[1693771442018,3.4296,1640.8,1640.4,4.77719988]
[1693771442359,3.4296,1640.8,1640.5,1.53692803]
[1693771442561,3.4296,1640.8,1640.5,0.47771999]
[1693771444241,3.4296,1640.8,1640.4,3.71799184]
[1693771444412,3.4296,1640.8,1640.5,1.05921578]
[1693771446151,1.553,1640.6,1640.3,1.58763645]
[1693771446311,1.553,1640.6,1640.4,1.05927141]
[1693771446514,1.553,1640.6,1640.3,1.58763645]
[1693771447216,1.553,1640.6,1640.4,1.05927444]
[1693771447419,4.0428,1640.7,1640.3,0.6361378]
[1693771449033,4.0428,1640.7,1640.3,1.6954152]
[1693771449233,4.0428,1640.7,1640.4,1.0592774]
[1693771449521,4.0428,1640.7,1640.3,0.6361378]
[1693771449946,4.0428,1640.7,1640.3,1.6954169]
[1693771449947,1.553,1640.4,1640.3,1.6954169]
[1693771450154,1.553,1640.4,1640.1,0.6361378]
[1693771450454,9.17693,1640.7,1640.1,1.05944362]
[1693771450455,1.553,1640.3,1640.1,1.05944362]
[1693771450642,4.2154,1640.4,1640.0,1.58763645]
[1693771450838,4.2154,1640.4,1640.0,5.72892753]
[1693771451040,1.553,1640.3,1640.1,1.05943704]
[1693771451255,1.553,1640.3,1640.1,1.20725313]
[1693771451555,1.553,1640.3,1640.1,0.14781609]
[1693771452253,1.97454,1640.3,1640.1,0.14781609]
[1693771453258,1.97454,1640.3,1640.0,0.6361378]
[1693771453551,4.1557,1640.2,1640.0,0.6361378]
[1693771453767,4.1557,1640.2,1639.9,0.6361378]
[1693771453928,4.1557,1640.2,1639.9,3.71799184]
[1693771454131,4.1557,1640.2,1640.0,1.05949201]
[1693771455623,1.553,1640.1,1639.9,0.6361378]
[1693771455956,1.553,1640.1,1639.8,1.58763645]
[1693771456118,1.553,1640.1,1639.8,4.66949049]
[1693771456321,1.553,1640.1,1639.9,1.0595758]
[1693771456561,3.6131,1640.1,1639.9,1.0595758]
[1693771457159,3.6131,1640.1,1639.9,1.6957136]
[1693771459560,3.6131,1640.1,1639.9,2.64721225]
[1693771459934,2.97735821,1640.1,1639.9,2.64721225]
[1693771460359,2.97735821,1640.1,1640.0,1.6957136]
[1693771460769,2.97735821,1640.1,1640.0,0.6361378]
[1693771462089,2.6027,1640.2,1640.0,0.6361378]
[1693771462278,4.1557,1640.2,1640.0,0.6361378]
[1693771462789,4.1557,1640.2,1640.0,1.6957136]
[1693771462988,4.1557,1640.2,1640.1,1.0595758]
[1693771463162,4.1557,1640.2,1640.0,0.6361378]
[1693771463987,4.1557,1640.2,1640.0,1.58763645]
[1693771464154,4.1557,1640.2,1640.1,1.0595758]
[1693771464486,4.1557,1640.2,1640.0,0.6361378]
[1693771464989,4.1557,1640.2,1640.0,1.58763645]
[1693771465375,1.553,1640.1,1640.0,1.58763645]
[1693771466489,1.553,1640.1,1640.0,1.73082057]
[1693771466787,1.553,1640.1,1640.0,2.79039637]
[1693771467978,1.553,1640.1,1640.0,2.15425857]
[1693771468498,1.553,1640.1,1640.0,2.79022343]
[1693771469084,1.553,1640.1,1640.0,2.15425857]
[1693771469463,1.553,1640.1,1640.0,2.79019637]
[1693771470059,1.553,1640.1,1640.0,2.15425857]
[1693771470559,1.553,1640.1,1640.0,1.73060759]
[1693771470878,1.553,1640.1,1640.0,1.09468277]
[1693771471080,1.553,1640.1,1640.0,2.15425857]
[1693771471495,1.553,1640.1,1640.0,2.79016262]
[1693771471997,1.553,1640.1,1640.0,2.15425857]
[1693771472590,1.553,1640.1,1640.0,2.79016076]
[1693771477411,1.553,1640.1,1640.0,2.15425857]
[1693771480418,1.96857,1640.1,1640.0,2.15425857]
[1693771481921,0.83835235,1640.1,1640.0,2.15425857]
[1693771483603,0.83835235,1640.1,1640.0,3.43237996]
[1693771484787,0.83835235,1640.1,1640.0,2.15425857]
[1693771488735,0.83835235,1640.1,1640.0,1.73219507]
[1693771488936,0.83835235,1640.1,1640.0,2.79177087]
[1693771489146,0.83835235,1640.1,1640.0,2.15425857]
[1693771489442,0.83835235,1640.1,1640.0,1.84031441]
[1693771490306,6.93553235,1640.1,1640.0,1.20275992]
[1693771490640,1.31835235,1640.1,1640.0,1.20275992]
[1693771490811,10.41553235,1640.1,1640.0,1.0595758]
[1693771491019,10.41553235,1640.1,1639.9,1.69713029]
[1693771491219,2.59455323,1640.0,1639.9,0.63755449]
[1693771491644,2.59455323,1640.0,1639.9,1.69729971]
[1693771491806,8.69211323,1640.0,1639.9,1.69729971]
[1693771492006,8.69211323,1640.0,1639.9,0.63755449]
[1693771493110,2.59455323,1640.0,1639.9,0.63755449]
[1693771493336,2.59455323,1640.0,1639.9,1.58905314]
[1693771493668,2.59455323,1640.0,1639.9,0.63755449]
[1693771494516,2.59455323,1640.0,1639.9,1.69729971]
[1693771494741,2.59455323,1640.0,1639.9,0.63755449]
[1693771495518,2.59455323,1640.0,1639.9,1.69729971]
[1693771495911,2.59455323,1640.0,1639.9,0.63755449]
[1693771496517,2.59455323,1640.0,1639.9,1.84145645]
[1693771497068,19.90452727,1640.0,1639.9,1.84145645]
[1693771497262,13.72511323,1640.0,1639.9,0.14415674]
[1693771497416,7.62755323,1640.0,1639.7,0.63755449]
[1693771497617,1.553,1639.8,1639.7,0.63755449]
[1693771498661,1.553,1639.8,1639.7,1.697405]
[1693771498854,1.553,1639.8,1639.7,1.84172086]
[1693771499420,1.553,1639.8,1639.7,1.20416637]
[1693771502265,2.31575532,1639.9,1639.7,1.84172086]
[1693771502453,2.31575532,1639.9,1639.7,0.14431586]
[1693771502658,2.31575532,1639.9,1639.6,1.58905314]
[1693771502828,1.553,1639.9,1639.6,1.58905314]
[1693771504059,1.553,1639.9,1639.6,0.63755449]
[1693771504453,1.553,1639.9,1639.6,1.69736737]
[1693771504660,1.553,1639.9,1639.7,1.05981288]
[1693771504839,1.553,1639.9,1639.6,0.63755449]
[1693771506062,1.553,1639.9,1639.7,1.05982772]
[1693771506268,2.4971,1639.8,1639.6,0.63755449]
[1693771506974,4.0501,1639.8,1639.6,0.63755449]
[1693771507156,4.0501,1639.8,1639.5,1.69737975]
[1693771507573,4.0501,1639.8,1639.5,2.6488784]
[1693771508073,1.553,1639.7,1639.5,2.6488784]
[1693771508473,1.553,1639.7,1639.6,1.05982526]
[1693771508974,1.553,1639.7,1639.5,1.69737975]
[1693771509163,1.553,1639.7,1639.6,1.05982526]
[1693771509973,1.553,1639.7,1639.4,0.63755449]
[1693771510140,1.553,1639.7,1639.4,2.14880373]
[1693771510339,1.553,1639.7,1639.5,1.05986179]
[1693771510742,1.553,1639.7,1639.4,2.04044059]
[1693771510979,1.553,1639.7,1639.5,1.05985784]
[1693771511181,1.553,1639.7,1639.5,1.21334485]
[1693771511387,1.553,1639.7,1639.5,0.15348701]
[1693771514909,3.6047,1639.7,1639.5,0.15348701]
[1693771523719,1.553,1639.7,1639.5,0.15348701]
[1693771524021,1.553,1639.9,1639.5,0.7910415]
[1693771524190,7.6724,1640.0,1639.5,1.74254015]
[1693771524385,7.6724,1640.0,1639.6,1.05987342]
[1693771524623,9.6107,1640.0,1639.6,1.05987342]
[1693771525181,9.6107,1640.0,1639.6,1.69742791]
[1693771526223,9.6107,1640.0,1639.7,0.15322785]
[1693771526430,1.553,1639.9,1639.7,0.15322785]
[1693771526612,1.553,1639.9,1639.6,0.63755449]
[1693771527120,9.67720862,1640.0,1639.6,1.69735346]
[1693771527121,7.5777,1640.0,1639.6,1.69735346]
[1693771527488,7.5777,1640.0,1639.6,0.63755449]
[1693771527699,3.0,1640.0,1639.7,0.63755449]
[1693771528514,3.0,1640.0,1639.7,1.69735346]
[1693771528731,0.95579513,1640.4,1639.8,4.14165301]
[1693771528913,6.837236,1640.7,1640.0,0.63755449]
[1693771529115,6.837236,1640.7,1640.1,5.27240853]
[1693771529433,4.3965,1640.7,1640.2,1.05979897]
[1693771529623,5.9495,1640.7,1640.2,1.05979897]
[1693771532535,5.9495,1640.7,1640.3,0.15209909]
[1693771532837,5.9495,1640.7,1640.0,1.5524]
[1693771532838,1.553,1640.4,1640.0,1.5524]
[1693771533000,1.553,1640.4,1640.1,0.63708001]
[1693771533206,0.00313334,1640.3,1640.1,1.69659529]
[1693771534004,0.00313334,1640.3,1640.2,1.05948346]
[1693771534199,1.553,1640.5,1640.2,1.05948346]
[1693771534425,1.553,1640.5,1640.0,1.59277957]
[1693771534624,1.553,1640.5,1640.0,2.65227544]
[1693771535287,0.00314756,1640.4,1640.0,2.65227544]
[1693771536139,0.00314756,1640.4,1640.1,1.6966077]
[1693771536339,0.00314756,1640.4,1640.1,0.63711183]
[1693771538541,0.00314756,1640.4,1640.1,3.71896587]
[1693771538742,0.00314756,1640.4,1640.2,1.43139246]
[1693771538974,0.00314756,1640.4,1640.2,0.37189659]
[1693771539180,1.553,1640.6,1640.2,0.37189659]
[1693771540280,0.00315539,1640.5,1640.2,0.37189659]
[1693771544665,0.00315539,1640.5,1640.3,1.05940981]
[1693771544870,0.00315539,1640.5,1640.2,0.37189659]
[1693771545274,5.9495,1640.7,1640.2,0.37189659]
[1693771545473,5.9495,1640.7,1640.2,2.06841357]
[1693771545771,5.9495,1640.7,1640.3,1.05940515]
[1693771545970,1.553,1640.6,1640.3,1.05940515]
[1693771546179,1.55616579,1640.6,1640.3,1.05940515]
[1693771553296,0.00316579,1640.6,1640.3,1.05940515]
[1693771554016,0.00316579,1640.6,1640.2,1.96467616]
[1693771554225,5.9495,1640.7,1640.3,1.0594136]
[1693771555324,0.00316579,1640.6,1640.3,1.0594136]
[1693771556098,0.00316579,1640.6,1640.3,1.69652543]
[1693771556299,5.9495,1640.7,1640.3,1.69652543]
[1693771557198,0.00317643,1640.6,1640.3,1.69652543]
[1693771558228,5.9495,1640.7,1640.3,1.69652543]
[1693771558387,5.9495,1640.7,1640.3,2.15267441]
[1693771558685,5.9495,1640.7,1640.4,1.0594136]
[1693771559316,0.00317643,1640.6,1640.4,1.0594136]
[1693771560402,5.9495,1640.7,1640.4,1.0594136]
[1693771561213,0.00317772,1640.6,1640.4,1.0594136]
[1693771562324,5.9495,1640.7,1640.4,1.0594136]
[1693771562713,7.153909,1640.7,1640.4,1.0594136]
[1693771562910,7.153909,1640.7,1640.3,0.63711183]
[1693771563096,7.153909,1640.7,1640.3,1.69651933]
[1693771563304,0.00305811,1640.6,1640.3,1.69651933]
[1693771564321,5.9495,1640.7,1640.3,1.69651933]
[1693771564492,5.9495,1640.7,1640.3,2.65218707]
[1693771565246,0.00305811,1640.6,1640.3,2.65218707]
[1693771565405,0.00305811,1640.6,1640.4,1.69651933]
[1693771566189,5.9495,1640.7,1640.4,1.69651933]
[1693771566393,1.553,1640.6,1640.5,1.0594075]
[1693771566593,1.553,1640.6,1640.4,1.69651933]
[1693771567193,0.00305028,1640.5,1640.4,1.69651933]
[1693771567424,1e-08,1640.5,1640.4,1.69651933]
[1693771567828,1.55300001,1640.5,1640.4,1.0594075]
[1693771568133,1.55300001,1640.5,1640.3,1.69651933]
[1693771568332,1.553,1640.5,1640.4,1.0594075]
[1693771568625,1.553,1640.6,1640.3,1.59277957]
[1693771569540,1.553,1640.6,1640.4,1.69651933]
[1693771569699,2.757451,1640.6,1640.5,1.0594075]
[1693771569904,2.757451,1640.6,1640.4,0.63711183]
[1693771573638,2.757451,1640.6,1640.5,0.63711183]
[1693771575408,1.553,1640.6,1640.5,0.63711183]
[1693771575606,1.553,1640.6,1640.5,1.69651933]
[1693771576026,1.553,1640.6,1640.5,0.63711183]
[1693771576420,1.553,1640.6,1640.5,1.0594075]
[1693771576627,1.553,1640.6,1640.4,1.59277957]
[1693771576828,1.553,1640.6,1640.5,1.69651933]
[1693771577224,1.553,1640.6,1640.5,0.63711183]
[1693771577517,1.553,1640.6,1640.5,1.0594075]
[1693771578052,1.553,1640.6,1640.4,0.63711183]
[1693771578553,1.553,1640.6,1640.4,1.69651933]
[1693771578713,1.553,1640.6,1640.5,1.0594075]
[1693771579049,1.553,1640.6,1640.4,0.63711183]
[1693771579439,1.553,1640.6,1640.3,2.65218707]
[1693771579633,1.553,1640.6,1640.4,1.05946476]
[1693771579834,1.553,1640.6,1640.3,1.59277957]
[1693771580025,1.553,1640.6,1640.3,2.65224418]
[1693771580637,1.553,1640.6,1640.4,1.05946461]
[1693771580839,1.553,1640.6,1640.3,0.63711183]
[1693771581043,1.553,1640.6,1640.3,1.69657698]
[1693771582354,1.553,1640.6,1640.3,1.05946515]
[1693771582558,1.553,1640.6,1640.2,2.17391183]
[1693771582766,2.5193,1640.5,1640.3,1.05946556]
[1693771583466,2.5193,1640.5,1640.2,0.31295796]
[1693771596211,4.5383,1640.5,1640.2,0.31295796]
[1693771601121,4.5383,1640.5,1640.1,2.16545723]
[1693771601274,4.5383,1640.5,1640.2,1.05946443]
[1693771601475,4.5383,1640.5,1640.1,0.63905723]
[1693771601685,4.5383,1640.5,1640.1,1.69852195]
[1693771615856,7.62015404,1640.5,1639.9,0.63905723]
[1693771616176,9.27449154,1640.4,1639.9,0.63905723]
[1693771616357,15.37071154,1640.4,1639.9,1.05960397]
[1693771616544,4.414,1640.3,1639.8,0.63905723]
[1693771616751,3.57616677,1640.2,1639.8,0.63905723]
[1693771616952,7.34886677,1640.1,1639.8,0.63905723]
[1693771617262,4.2141,1640.1,1639.8,0.63905723]
[1693771617464,6.1322,1640.1,1639.8,0.63905723]
[1693771618576,6.1322,1640.1,1639.7,1.59764308]
[1693771618744,6.1322,1640.1,1639.7,2.65731243]
[1693771618953,6.1322,1640.1,1639.7,3.21317512]
[1693771619147,6.1322,1640.1,1639.8,1.05966935]
[1693771619354,6.1322,1640.1,1639.7,1.59764308]
[1693771619672,1.553,1640.0,1639.7,1.69873709]
[1693771619976,1.553,1640.0,1639.8,1.05967986]
[1693771620182,1.553,1640.0,1639.7,0.63905723]
[1693771620473,4.5792,1640.1,1639.7,0.63905723]
[1693771620474,6.1322,1640.1,1639.7,0.63905723]
[1693771620784,4.5792,1640.1,1639.7,0.63905723]
[1693771621342,4.5792,1640.1,1639.8,0.63905723]
[1693771622358,4.5792,1640.1,1639.7,1.59764308]
[1693771622559,4.5792,1640.1,1639.7,2.65727622]
[1693771622745,4.5792,1640.1,1639.8,1.05963314]
[1693771622940,4.5792,1640.1,1639.7,1.59764308]
[1693771623846,4.5792,1640.1,1639.8,1.05963139]
[1693771624079,4.5792,1640.1,1639.7,0.63905723]
[1693771624465,4.5792,1640.1,1639.7,1.59764308]
[1693771624783,4.5792,1640.1,1639.8,1.05963522]
[1693771624958,4.5792,1640.1,1639.7,0.63905723]
[1693771625566,4.5792,1640.1,1639.7,2.09222649]
[1693771625773,4.5792,1640.1,1639.8,1.05963046]
[1693771627282,6.1322,1640.1,1639.8,1.05963046]
[1693771627488,6.1322,1640.1,1639.6,0.63905723]
[1693771627785,6.1322,1640.1,1639.6,4.78061671]
[1693771627963,6.1322,1640.1,1639.7,1.05970544]
[1693771648717,6.1322,1640.1,1639.7,1.69876267]
[1693771652099,1.553,1640.0,1639.7,1.69876267]
[1693771652304,1.553,1639.9,1639.6,2.33298334]
[1693771652498,1.553,1639.9,1639.7,1.05972403]
[1693771652499,6.108,1639.9,1639.7,1.05972403]
[1693771652704,6.108,1639.9,1639.6,1.59764308]
[1693771653005,6.108,1639.9,1639.5,0.63905723]
[1693771653006,1.553,1639.8,1639.5,0.63905723]
[1693771653222,3.5524,1639.8,1639.5,1.69886039]
[1693771653391,3.5524,1639.8,1639.6,1.05980316]
[1693771653739,4.1632,1639.8,1639.5,0.63905723]
[1693771655598,4.1632,1639.8,1639.5,1.59764308]
[1693771656316,3.5524,1639.8,1639.5,1.59764308]
[1693771657037,3.5524,1639.8,1639.6,1.69886783]
[1693771657241,3.5524,1639.8,1639.7,1.0598106]
[1693771657404,3.5524,1639.8,1639.6,0.63905723]
[1693771657904,3.5524,1639.8,1639.6,1.69886783]
[1693771660459,3.5524,1639.8,1639.6,0.63905723]
[1693771660644,3.5524,1639.8,1639.6,1.69886783]
[1693771661443,3.5524,1639.8,1639.6,2.65745368]
[1693771662447,3.5524,1639.8,1639.6,1.69886783]
[1693771662636,3.5524,1639.8,1639.7,1.0598106]
[1693771662968,1.9994,1639.8,1639.6,2.65745368]
[1693771663447,1.9994,1639.8,1639.7,1.0598106]
[1693771663947,1.9994,1639.8,1639.6,1.69886783]
[1693771669475,1.9994,1639.8,1639.5,2.27632083]
[1693771669676,1.9994,1639.8,1639.6,1.05978419]
[1693771670960,1.9994,1639.8,1639.5,1.59764308]
[1693771671679,1.9994,1639.8,1639.6,1.05978351]
[1693771671880,4.1086,1639.9,1639.7,1.05978351]
[1693771671881,2.5556,1639.9,1639.7,1.05978351]
[1693771672057,2.5556,1639.9,1639.6,0.63905723]
[1693771672554,2.5556,1639.9,1639.6,1.69879418]
[1693771673157,2.5556,1639.9,1639.6,1.05973695]
[1693771673351,1.553,1639.7,1639.5,0.63905723]
[1693771673659,1.553,1639.7,1639.4,1.59764308]
[1693771673980,1.553,1639.7,1639.4,2.65749126]
[1693771674177,4.1222,1639.7,1639.4,2.65749126]
[1693771679310,4.73682,1639.7,1639.4,2.65749126]
[1693771679606,4.73682,1639.7,1639.5,1.05984818]
[1693771679607,1.553,1639.6,1639.5,1.05984818]
[1693771679807,4.73682,1639.7,1639.4,1.69890541]
[1693771679964,2.0252,1639.6,1639.4,1.69890541]
[1693771682115,2.0252,1639.6,1639.5,1.05984818]
[1693771682314,2.0252,1639.6,1639.4,1.05984818]
[1693771682611,2.0252,1639.6,1639.4,1.69890541]
[1693771683173,2.0252,1639.6,1639.3,1.69764308]
[1693771683507,2.0252,1639.6,1639.4,1.05987849]
[1693771687325,2.5692,1639.7,1639.4,1.05987849]
[1693771687608,2.5692,1639.7,1639.5,1.05987849]
[1693771687784,2.5692,1639.7,1639.4,0.63905723]
[1693771688179,2.5692,1639.7,1639.4,1.6989118]
[1693771695923,2.5692,1639.7,1639.5,1.05985457]
[1693771696075,2.5692,1639.7,1639.4,0.63905723]
[1693771696523,2.5692,1639.7,1639.4,1.69890409]
[1693771697203,2.5692,1639.7,1639.4,2.65748994]
[1693771698531,2.5692,1639.7,1639.5,1.69890409]
[1693771698684,2.5692,1639.7,1639.6,1.05984686]
[1693771699085,2.5692,1639.7,1639.5,0.63905723]
[1693771700231,3.05062292,1639.7,1639.5,0.63905723]
[1693771705933,3.05062292,1639.7,1639.4,1.59764308]
[1693771706129,3.05062292,1639.7,1639.5,1.69889572]
[1693771706436,3.05062292,1639.7,1639.6,1.05983849]
[1693771706601,3.05062292,1639.7,1639.5,0.63905723]
[1693771706818,3.05062292,1639.7,1639.5,1.69889572]
[1693771707147,3.05062292,1639.7,1639.6,1.05983849]
[1693771707302,3.05062292,1639.7,1639.5,0.63905723]
[1693771708009,4.98572292,1639.7,1639.5,0.63905723]
[1693771709750,5.63959521,1639.7,1639.4,1.69889572]
[1693771709931,5.63959521,1639.7,1639.5,1.05990457]
[1693771709932,1.553,1639.6,1639.5,1.05990457]
[1693771710142,1.553,1639.6,1639.4,1.05990842]
[1693771710143,4.81717315,1639.6,1639.4,1.05990842]
[1693771710325,8.18776754,1639.5,1639.3,0.73926824]
[1693771710519,8.18776754,1639.5,1639.4,1.0599599]
[1693771710520,2.03471732,1639.5,1639.4,1.0599599]
[1693771710722,4.50121732,1639.5,1639.4,1.0599599]
[1693771711324,4.50121732,1639.5,1639.3,0.1]
[1693771715134,1.553,1639.4,1639.3,0.1]
[1693771715336,2.00312173,1639.4,1639.3,0.1]
[1693771717850,8.10291173,1639.4,1639.3,0.1]
[1693771718048,2.00312173,1639.4,1639.3,0.1]
[1693771723561,4.96791732,1639.5,1639.3,0.1]
[1693771723562,6.52091732,1639.5,1639.3,0.1]
[1693771726658,1.553,1639.4,1639.3,0.1]
[1693771733181,0.49699907,1639.7,1639.3,3.18185404]
[1693771733481,31.963,1640.7,1639.8,3.0]
[1693771733784,31.963,1640.7,1640.1,1.553]
[1693771733785,30.41,1640.7,1640.1,1.553]
[1693771733980,33.451,1640.7,1640.1,5.09015404]
[1693771734743,33.451,1640.7,1640.1,3.53715404]
[1693771736492,3.041,1640.7,1640.1,3.53715404]
[1693771736782,4.2226,1640.8,1640.1,3.53715404]
[1693771738191,1.553,1640.7,1640.1,3.53715404]
[1693771739093,1.553,1640.7,1640.2,1.05946973]
[1693771739594,4.2226,1640.8,1640.2,1.05946973]
[1693771747621,4.2226,1640.8,1640.2,1.69714722]
[1693771747914,8.494461,1640.8,1640.2,2.31637171]
[1693771748107,8.494461,1640.8,1640.3,1.05946973]
[1693771755321,8.494461,1640.8,1640.2,2.21484564]
[1693771755637,8.494461,1640.8,1640.3,1.05946788]
[1693771755829,1.553,1640.5,1640.3,1.05946788]
[1693771756020,1.553,1640.4,1640.2,0.63767749]
[1693771756416,1.553,1640.4,1640.2,1.69720286]
[1693771756634,3.9778,1640.5,1640.2,1.69720286]
[1693771757837,3.9778,1640.5,1640.3,1.05952875]
[1693771758031,3.9778,1640.5,1640.2,0.63393001]
[1693771758032,1.553,1640.4,1640.2,0.63393001]
[1693771759409,1.553,1640.4,1640.1,0.63393001]
[1693771759614,1.553,1640.4,1640.1,1.58482503]
[1693771759814,1.553,1640.4,1640.1,0.63393001]